[Event "Klubbmästerskap 2025 Tisdag"]
[Site "Linköping, Sweden"]
[Date "2025.03.04"]
[Round "6.1"]
[White "Olsson, Simon"]
[Black "Rosenbecker, Daniel"]
[Result "0-1"]
[TimeControl "90 min + 30 sec/move"]
[BlackTitle "CM"]
[WhiteElo "2075"]
[BlackElo "2110"]

1. d4 {[%clk 01:30:58]} {[%emt 00:00:02]} Nf6 {[%clk 01:30:53]} {[%emt
00:00:07]} 2. c4 {[%clk 01:31:22]} {[%emt 00:00:07]} d6 {[%clk 01:31:17]}
{[%emt 00:00:05]} 3. Nc3 {[%clk 01:29:41]} {[%emt 00:02:11]} Nbd7 {[%clk
01:25:54]} {[%emt 00:06:55]} 4. e4 {[%clk 01:25:08]} {[%emt 00:04:01]} e5
{[%clk 01:23:40]} {[%emt 00:02:43]} 5. d5 {[%clk 01:21:54]} {[%emt 00:03:45]}
g6 {[%clk 01:23:36]} {[%emt 00:00:34]} 6. Be2 {[%clk 01:19:51]} {[%emt
00:02:33]} Bg7 {[%clk 01:23:53]} {[%emt 00:00:14]} 7. h4 {[%clk 01:14:55]}
{[%emt 00:05:25]} Nc5 {[%clk 01:23:47]} {[%emt 00:00:36]} 8. Qc2 {[%clk
01:12:24]} {[%emt 00:03:02]} h6 {[%clk 01:09:03]} {[%emt 00:15:14]} 9. Bd2
{[%clk 01:05:59]} {[%emt 00:06:54]} c6 {[%clk 01:08:30]} {[%emt 00:01:03]} 10.
Be3 {[%clk 00:56:27]} {[%emt 00:10:02]} cxd5 {[%clk 01:04:49]} {[%emt
00:04:12]} 11. Bxc5 {[%clk 00:56:38]} {[%emt 00:00:19]} dxc5 {[%clk 01:04:50]}
{[%emt 00:00:29]} 12. cxd5 {[%clk 00:55:23]} {[%emt 00:01:44]} O-O {[%clk
01:04:32]} {[%emt 00:00:48]} 13. Nf3 {[%clk 00:53:49]} {[%emt 00:02:04]} Ne8
{[%clk 01:02:58]} {[%emt 00:02:04]} 14. Nd2 {[%clk 00:51:09]} {[%emt 00:03:10]}
f5 {[%clk 00:59:04]} {[%emt 00:04:24]} 15. O-O-O {[%clk 00:48:15]} {[%emt
00:03:25]} a6 {[%clk 00:55:43]} {[%emt 00:03:51]} 16. h5 {[%clk 00:46:10]}
{[%emt 00:02:34]} g5 {[%clk 00:55:43]} {[%emt 00:00:30]} 17. exf5 {[%clk
00:27:17]} {[%emt 00:19:23]} Bxf5 {[%clk 00:55:58]} {[%emt 00:00:15]} 18. Bd3
{[%clk 00:27:41]} {[%emt 00:00:06]} Nd6 {[%clk 00:54:51]} {[%emt 00:01:38]} 19.
f3 {[%clk 00:20:21]} {[%emt 00:07:50]} b5 {[%clk 00:53:18]} {[%emt 00:02:02]}
20. g4 {[%clk 00:19:57]} {[%emt 00:00:54]} Bxd3 {[%clk 00:53:41]} {[%emt
00:00:07]} 21. Qxd3 {[%clk 00:20:23]} {[%emt 00:00:04]} b4 {[%clk 00:51:33]}
{[%emt 00:02:38]} 22. Nce4 {[%clk 00:19:11]} {[%emt 00:01:42]} c4 {[%clk
00:51:23]} {[%emt 00:00:41]} 23. Qe2 {[%clk 00:16:31]} {[%emt 00:03:09]} c3
{[%clk 00:51:09]} {[%emt 00:00:44]} 24. Nb3 {[%clk 00:16:13]} {[%emt 00:00:49]}
Qb6 {[%clk 00:43:34]} {[%emt 00:08:04]} 25. Nxd6 {[%clk 00:05:23]} {[%emt
00:11:21]} Qxd6 {[%clk 00:43:42]} {[%emt 00:00:22]} 26. Na5 {[%clk 00:05:44]}
{[%emt 00:00:08]} e4 {[%clk 00:37:49]} {[%emt 00:06:23]} 27. fxe4 {[%clk
00:03:57]} {[%emt 00:02:18]} Qc5 {[%clk 00:37:16]} {[%emt 00:01:02]} 28. Nb3
{[%clk 00:03:44]} {[%emt 00:00:44]} Qb6 {[%clk 00:30:19]} {[%emt 00:07:27]} 29.
Rhf1 {[%clk 00:03:03]} {[%emt 00:01:10]} Be5 {[%clk 00:30:45]} {[%emt
00:00:04]} 30. Kb1 {[%clk 00:02:35]} {[%emt 00:00:58]} a5 {[%clk 00:27:05]}
{[%emt 00:04:11]} 31. Nc1 {[%clk 00:01:50]} {[%emt 00:01:15]} Rfc8 {[%clk
00:23:56]} {[%emt 00:03:39]} 32. Rd3 {[%clk 00:01:44]} {[%emt 00:00:36]} cxb2
{[%clk 00:21:32]} {[%emt 00:02:54]} 33. Nb3 {[%clk 00:02:06]} {[%emt 00:00:08]}
a4 {[%clk 00:21:51]} {[%emt 00:00:11]} 34. Nd2 {[%clk 00:02:01]} {[%emt
00:00:35]} Qc5 {[%clk 00:19:37]} {[%emt 00:02:44]} 35. Qd1 {[%clk 00:02:28]}
{[%emt 00:00:02]} b3 {[%clk 00:19:37]} {[%emt 00:00:30]} 36. Nxb3 {[%clk
00:01:49]} {[%emt 00:01:10]} axb3 {[%clk 00:19:57]} {[%emt 00:00:10]} 37. Rxb3
{[%clk 00:02:17]} {[%emt 00:00:02]} Rxa2 {[%clk 00:19:39]} {[%emt 00:00:48]} 38.
Kxa2 {[%clk 00:02:34]} {[%emt 00:00:13]} Ra8+ {[%clk 00:20:06]} {[%emt
00:00:03]} 0-1

[Event "Klubbmästerskap 2025 Tisdag"]
[Site "Linköping, Sweden"]
[Date "2025.03.04"]
[Round "6.2"]
[White "Malm, Simon 1995"]
[Black "Carlsson, Ingvar"]
[Result "1/2-1/2"]
[TimeControl "90 min + 30 sec/move"]
[WhiteElo "1976"]
[BlackElo "1996"]

1. d4 {[%clk 01:30:56]} {[%emt 00:00:02]} f5 {[%clk 01:30:48]} {[%emt
00:00:12]} 2. c4 {[%clk 01:31:09]} {[%emt 00:00:18]} Nf6 {[%clk 01:30:32]}
{[%emt 00:00:45]} 3. g3 {[%clk 01:31:08]} {[%emt 00:07:10]} e6 {[%clk
01:29:20]} 4. Bg2 {[%clk 01:30:48]} Bb4+ {[%clk 01:29:27]} 5. Bd2 {[%clk
01:30:35]} Qe7 {[%clk 01:29:11]} 6. a3 {[%clk 01:27:58]} {[%emt 00:00:53]}
Bxd2+ {[%clk 01:29:31]} {[%emt 00:00:09]} 7. Qxd2 {[%clk 01:27:14]} {[%emt
00:01:15]} O-O {[%clk 01:29:30]} {[%emt 00:00:30]} 8. Nc3 {[%clk 01:26:39]}
{[%emt 00:01:06]} d6 {[%clk 01:29:36]} {[%emt 00:00:23]} 9. e3 {[%clk
01:12:55]} {[%emt 00:14:14]} c6 {[%clk 01:27:01]} {[%emt 00:03:05]} 10. Nge2
{[%clk 01:11:57]} {[%emt 00:01:28]} e5 {[%clk 01:18:49]} {[%emt 00:08:42]} 11.
dxe5 {[%clk 01:02:53]} {[%emt 00:09:35]} dxe5 {[%clk 01:18:01]} {[%emt
00:01:18]} 12. b4 {[%clk 00:57:27]} {[%emt 00:05:56]} Be6 {[%clk 01:17:22]}
{[%emt 00:01:09]} 13. c5 {[%clk 00:57:21]} {[%emt 00:00:37]} Na6 {[%clk
01:16:36]} {[%emt 00:01:16]} 14. O-O {[%clk 00:54:38]} {[%emt 00:03:12]} Rad8
{[%clk 01:16:38]} {[%emt 00:00:28]} 15. Qc2 {[%clk 00:54:21]} {[%emt 00:00:47]}
Nc7 {[%clk 00:51:46]} {[%emt 00:25:22]} 16. Rad1 {[%clk 00:44:03]} {[%emt
00:10:48]} g6 {[%clk 00:41:48]} {[%emt 00:10:28]} 17. Rxd8 {[%clk 00:43:13]}
{[%emt 00:01:20]} Rxd8 {[%clk 00:42:10]} {[%emt 00:00:08]} 18. Rd1 {[%clk
00:43:16]} {[%emt 00:00:27]} Rxd1+ {[%clk 00:35:16]} {[%emt 00:07:24]} 19. Qxd1
{[%clk 00:41:43]} {[%emt 00:02:03]} Qd7 {[%clk 00:33:43]} {[%emt 00:02:03]} 20.
Qxd7 {[%clk 00:41:06]} {[%emt 00:01:08]} Nxd7 {[%clk 00:32:41]} {[%emt
00:01:32]} 21. e4 {[%clk 00:39:15]} {[%emt 00:02:21]} Kf7 {[%clk 00:32:33]}
{[%emt 00:00:36]} 22. exf5 {[%clk 00:38:00]} {[%emt 00:01:47]} gxf5 {[%clk
00:32:03]} {[%emt 00:01:00]} 23. f4 {[%clk 00:37:25]} {[%emt 00:01:05]} Kf6
{[%clk 00:31:03]} {[%emt 00:01:30]} 24. Kf2 {[%clk 00:36:35]} {[%emt 00:01:20]}
Bc4 {[%clk 00:29:08]} {[%emt 00:02:24]} 25. Ke3 {[%clk 00:31:33]} {[%emt
00:05:33]} a5 {[%clk 00:27:43]} {[%emt 00:01:56]} 26. fxe5+ {[%clk 00:25:17]}
{[%emt 00:06:46]} Kxe5 {[%clk 00:27:25]} {[%emt 00:00:48]} 27. Nd4 {[%clk
00:22:57]} {[%emt 00:02:48]} axb4 {[%clk 00:27:28]} {[%emt 00:00:28]} 28. axb4
{[%clk 00:23:06]} {[%emt 00:00:22]} Na6 {[%clk 00:22:36]} {[%emt 00:05:22]} 29.
Bxc6 {[%clk 00:08:35]} {[%emt 00:15:01]} bxc6 {[%clk 00:13:52]} {[%emt
00:09:13]} 30. Nxc6+ {[%clk 00:09:02]} {[%emt 00:00:03]} Ke6 {[%clk 00:10:59]}
{[%emt 00:03:22]} 31. Na5 {[%clk 00:08:49]} {[%emt 00:00:44]} Bf1 {[%clk
00:03:04]} {[%emt 00:08:26]} 32. c6 {[%clk 00:08:02]} {[%emt 00:01:17]} Nb6
{[%clk 00:03:21]} {[%emt 00:00:12]} 33. b5 {[%clk 00:07:43]} {[%emt 00:00:50]}
Nc7 {[%clk 00:03:39]} {[%emt 00:00:12]} 34. Kd4 {[%clk 00:07:56]} {[%emt
00:00:16]} Nxb5+ {[%clk 00:02:59]} {[%emt 00:01:09]} 35. Nxb5 {[%clk 00:06:38]}
{[%emt 00:01:49]} Bxb5 {[%clk 00:03:18]} {[%emt 00:00:11]} 36. Kc5 {[%clk
00:06:48]} {[%emt 00:00:20]} Bxc6 {[%clk 00:03:19]} {[%emt 00:00:28]} 37. Nxc6
{[%clk 00:06:59]} {[%emt 00:00:20]} Nd7+ {[%clk 00:03:18]} {[%emt 00:00:30]} 38.
Kd4 {[%clk 00:06:32]} {[%emt 00:00:57]} Kf6 {[%clk 00:02:39]} {[%emt 00:01:09]}
39. Ke3 {[%clk 00:06:07]} {[%emt 00:00:56]} Nc5 {[%clk 00:02:50]} {[%emt
00:00:19]} 40. Nd4 {[%clk 00:06:09]} {[%emt 00:00:29]} Ke5 {[%clk 00:02:47]}
{[%emt 00:00:32]} 41. Nf3+ {[%clk 00:06:16]} {[%emt 00:00:23]} Kf6 {[%clk
00:02:08]} {[%emt 00:00:09]} 42. Nd4 {[%clk 00:05:50]} {[%emt 00:01:57]} Ke5
{[%emt 00:00:17]} 43. Ke4+ 1/2-1/2

[Event "Klubbmästerskap 2025 Tisdag"]
[Site "Linköping, Sweden"]
[Date "2025.03.04"]
[Round "6.3"]
[White "Pavlic, Oliver"]
[Black "Grundel, Sam"]
[Result "0-1"]
[TimeControl "90 min + 30 sec/move"]
[WhiteElo "1950"]
[BlackElo "2019"]

1. d4 {[%clk 01:30:57]} {[%emt 00:00:03]} d5 {[%clk 01:30:46]} {[%emt
00:00:14]} 2. c4 {[%clk 01:31:18]} {[%emt 00:00:08]} c6 {[%clk 01:31:07]}
{[%emt 00:00:09]} 3. Nc3 {[%clk 01:31:45]} {[%emt 00:00:02]} Nf6 {[%clk
01:31:31]} {[%emt 00:06:56]} 4. e3 {[%clk 01:32:11]} e6 {[%clk 01:31:52]} 5.
Nf3 {[%clk 01:32:35]} Nbd7 {[%clk 01:32:10]} 6. Qc2 {[%clk 01:32:54]} Bd6
{[%clk 01:32:22]} 7. Bd3 {[%clk 01:33:11]} O-O {[%clk 01:32:30]} 8. O-O {[%clk
01:33:29]} dxc4 {[%clk 01:25:06]} {[%emt 00:02:53]} 9. Bxc4 {[%clk 01:33:52]}
{[%emt 00:00:07]} e5 {[%clk 01:25:05]} {[%emt 00:00:30]} 10. h3 {[%clk
01:34:05]} {[%emt 00:00:16]} Qe7 {[%clk 01:22:37]} {[%emt 00:02:59]} 11. a3
{[%clk 01:34:13]} {[%emt 00:00:22]} Bc7 {[%clk 01:16:42]} {[%emt 00:06:25]} 12.
Ba2 {[%clk 01:32:31]} {[%emt 00:02:12]} h6 {[%clk 01:15:41]} {[%emt 00:01:31]}
13. Nh4 {[%clk 01:25:10]} {[%emt 00:07:51]} Re8 {[%clk 01:09:21]} {[%emt
00:06:50]} 14. Nf5 {[%clk 01:22:36]} {[%emt 00:03:03]} Qf8 {[%clk 01:09:23]}
{[%emt 00:00:28]} 15. Nb5 {[%clk 01:20:58]} {[%emt 00:02:09]} Bb8 {[%clk
01:03:01]} {[%emt 00:06:52]} 16. Bd2 {[%clk 01:21:25]} {[%emt 00:00:03]} a5
{[%clk 01:02:37]} {[%emt 00:00:55]} 17. dxe5 {[%clk 01:13:58]} {[%emt
00:07:57]} Rxe5 {[%clk 00:54:20]} {[%emt 00:08:46]} 18. Nbd4 {[%clk 01:12:50]}
{[%emt 00:01:37]} Ne4 {[%clk 00:51:08]} {[%emt 00:03:43]} 19. Be1 {[%clk
01:00:06]} {[%emt 00:13:14]} Ndf6 {[%clk 00:46:33]} {[%emt 00:05:05]} 20. g4
{[%clk 00:50:22]} {[%emt 00:10:13]} c5 {[%clk 00:39:46]} {[%emt 00:07:16]} 21.
Nf3 {[%clk 00:43:43]} {[%emt 00:07:09]} Rxf5 {[%clk 00:31:37]} {[%emt
00:08:40]} 22. gxf5 {[%clk 00:44:02]} {[%emt 00:00:11]} Bxf5 {[%clk 00:32:03]}
{[%emt 00:00:05]} 23. Nh4 {[%clk 00:38:08]} {[%emt 00:06:24]} Bxh3 {[%clk
00:30:26]} {[%emt 00:02:07]} 24. f3 {[%clk 00:37:58]} {[%emt 00:00:40]} Ng5
{[%clk 00:26:09]} {[%emt 00:04:47]} 25. Bc3 {[%clk 00:34:14]} {[%emt 00:04:14]}
Ra6 {[%clk 00:23:16]} {[%emt 00:03:22]} 26. Nf5 {[%clk 00:32:18]} {[%emt
00:02:26]} b5 {[%clk 00:20:05]} {[%emt 00:03:42]} 27. b4 {[%clk 00:23:53]}
{[%emt 00:08:54]} c4 {[%clk 00:18:52]} {[%emt 00:01:44]} 28. Rad1 {[%clk
00:20:34]} {[%emt 00:03:49]} Bc7 {[%clk 00:18:13]} {[%emt 00:01:10]} 29. Bb1
{[%clk 00:17:39]} {[%emt 00:03:25]} g6 {[%clk 00:16:54]} {[%emt 00:01:49]} 30.
Nd4 {[%clk 00:15:49]} {[%emt 00:02:19]} Bxf1 {[%clk 00:13:45]} {[%emt
00:03:41]} 31. Rxf1 {[%clk 00:15:29]} {[%emt 00:00:50]} Nd5 {[%clk 00:13:55]}
{[%emt 00:00:20]} 32. Qc1 {[%clk 00:09:14]} {[%emt 00:06:45]} Qe7 {[%clk
00:11:23]} {[%emt 00:03:01]} 33. f4 {[%clk 00:07:18]} {[%emt 00:02:26]} Nxe3
{[%clk 00:09:28]} {[%emt 00:02:25]} 0-1

[Event "Klubbmästerskap 2025 Tisdag"]
[Site "Linköping, Sweden"]
[Date "2025.03.04"]
[Round "6.4"]
[White "Ivarsson, Simon"]
[Black "Gustavsson, Rolf"]
[Result "1-0"]
[TimeControl "90 min + 30 sec/move"]
[WhiteElo "1771"]
[BlackElo "1695"]

1. e4 {[%clk 01:30:48]} {[%emt 00:00:11]} c6 {[%clk 01:30:30]} {[%emt
00:00:31]} 2. d4 {[%clk 01:31:14]} {[%emt 00:00:04]} d5 {[%clk 01:30:46]}
{[%emt 00:00:13]} 3. exd5 {[%emt 00:00:04]} cxd5 {[%emt 00:00:17]} 4. c4 {[%clk
01:31:18]} {[%emt 00:00:04]} Nf6 {[%clk 01:29:19]} {[%emt 00:06:52]} 5. Nc3
{[%clk 01:31:12]} e6 {[%clk 01:28:43]} 6. Nf3 {[%clk 01:31:24]} Nc6 {[%clk
01:23:41]} {[%emt 00:02:36]} 7. Bg5 {[%clk 01:30:14]} {[%emt 00:01:40]} Be7
{[%clk 01:19:43]} {[%emt 00:04:28]} 8. Be2 {[%clk 01:28:34]} {[%emt 00:02:10]}
dxc4 {[%clk 01:17:55]} {[%emt 00:02:19]} 9. Bxc4 {[%clk 01:27:57]} {[%emt
00:01:07]} O-O {[%clk 01:07:50]} {[%emt 00:10:34]} 10. O-O {[%clk 01:27:29]}
{[%emt 00:00:57]} b6 {[%clk 01:03:49]} {[%emt 00:04:33]} 11. Re1 {[%clk
01:21:58]} {[%emt 00:06:01]} Re8 {[%clk 00:58:02]} {[%emt 00:06:15]} 12. h3
{[%clk 01:19:38]} {[%emt 00:02:52]} Bb7 {[%clk 00:49:57]} {[%emt 00:08:35]} 13.
Rc1 {[%clk 01:18:30]} {[%emt 00:01:38]} Nb4 {[%clk 00:41:30]} {[%emt 00:08:58]}
14. Ne5 {[%clk 01:15:54]} {[%emt 00:03:06]} Nbd5 {[%clk 00:33:06]} {[%emt
00:08:54]} 15. Bd3 {[%clk 01:13:42]} {[%emt 00:02:42]} g6 {[%clk 00:28:09]}
{[%emt 00:05:26]} 16. a3 {[%clk 01:09:58]} {[%emt 00:04:15]} Kg7 {[%clk
00:20:19]} {[%emt 00:08:19]} 17. Qd2 {[%clk 01:08:22]} {[%emt 00:02:07]} Rg8
{[%clk 00:16:58]} {[%emt 00:03:51]} 18. Bh6+ {[%clk 01:08:20]} {[%emt
00:00:32]} 1-0

[Event "Klubbmästerskap 2025 Tisdag"]
[Site "Linköping, Sweden"]
[Date "2025.03.04"]
[Round "6.6"]
[White "Jakobsson, Leif"]
[Black "Martinelle, Christoffer"]
[Result "1-0"]
[TimeControl "90 min + 30 sec/move"]
[WhiteElo "1714"]
[BlackElo "1765"]

1. e4 {[%clk 01:30:41]} {[%emt 00:00:19]} d5 {[%clk 01:30:41]} {[%emt
00:00:19]} 2. exd5 {[%clk 01:30:57]} {[%emt 00:00:13]} Qxd5 {[%clk 01:31:03]}
{[%emt 00:00:08]} 3. Nc3 {[%clk 01:31:04]} {[%emt 00:00:24]} Qa5 {[%clk
01:31:17]} {[%emt 00:00:16]} 4. d4 {[%clk 01:31:10]} {[%emt 00:00:24]} c6
{[%clk 01:31:28]} {[%emt 00:00:20]} 5. Bf4 {[%clk 01:26:42]} {[%emt 00:06:53]}
Nf6 {[%clk 01:30:33]} 6. Bd3 {[%clk 01:23:12]} {[%emt 00:03:28]} Bg4 {[%clk
01:26:34]} {[%emt 00:04:30]} 7. f3 {[%clk 01:19:43]} {[%emt 00:03:59]} Bh5
{[%clk 01:25:20]} {[%emt 00:01:44]} 8. Nge2 {[%clk 01:18:53]} {[%emt 00:01:20]}
e6 {[%clk 01:23:59]} {[%emt 00:01:51]} 9. O-O {[%clk 01:18:24]} {[%emt
00:00:59]} Nd5 {[%clk 01:17:57]} {[%emt 00:06:33]} 10. Nxd5 {[%clk 01:12:54]}
{[%emt 00:06:00]} cxd5 {[%clk 01:17:46]} {[%emt 00:00:41]} 11. c4 {[%clk
01:09:35]} {[%emt 00:03:48]} Nc6 {[%clk 00:53:09]} {[%emt 00:25:07]} 12. cxd5
{[%clk 01:01:45]} {[%emt 00:08:21]} exd5 {[%clk 00:46:53]} {[%emt 00:06:46]} 13.
Qb3 {[%clk 00:54:43]} {[%emt 00:07:31]} Qb6 {[%clk 00:24:58]} {[%emt 00:22:25]}
14. Qxd5 {[%clk 00:47:34]} {[%emt 00:07:38]} Bg6 {[%clk 00:24:13]} {[%emt
00:01:15]} 15. Be4 {[%clk 00:33:58]} {[%emt 00:14:06]} Rd8 {[%clk 00:16:51]}
{[%emt 00:07:52]} 16. Qb3 {[%clk 00:29:14]} {[%emt 00:05:14]} Qxb3 {[%emt
00:02:28]} 17. Bxc6+ {[%clk 00:26:54]} {[%emt 00:02:49]} bxc6 {[%clk 00:15:15]}
{[%emt 00:00:10]} 18. axb3 {[%clk 00:27:11]} {[%emt 00:00:13]} Bd3 {[%clk
00:11:08]} {[%emt 00:04:36]} 19. Rfe1 {[%clk 00:26:38]} {[%emt 00:01:03]} Rd7
{[%clk 00:07:43]} {[%emt 00:03:56]} 20. Nc1+ {[%clk 00:26:45]} {[%emt
00:00:24]} Kd8 {[%clk 00:05:13]} {[%emt 00:02:59]} 21. Nxd3 {[%clk 00:26:20]}
{[%emt 00:00:54]} Rxd4 {[%clk 00:05:03]} {[%emt 00:00:41]} 22. Rad1 {[%clk
00:24:44]} {[%emt 00:02:05]} Kc8 {[%clk 00:04:54]} {[%emt 00:00:39]} 23. Be3
{[%clk 00:21:30]} {[%emt 00:03:43]} Rd7 {[%clk 00:04:33]} {[%emt 00:00:52]} 24.
Ne5 {[%clk 00:21:01]} {[%emt 00:00:58]} Rc7 {[%clk 00:04:15]} {[%emt 00:00:49]}
25. Nc4 {[%clk 00:17:49]} {[%emt 00:03:41]} Bb4 {[%clk 00:03:53]} {[%emt
00:00:52]} 26. Nd6+ {[%clk 00:16:29]} {[%emt 00:01:50]} Kb8 {[%clk 00:04:08]}
{[%emt 00:00:15]} 27. Bf4 {[%clk 00:14:25]} {[%emt 00:02:35]} g5 {[%clk
00:02:11]} {[%emt 00:02:28]} 28. Re8+ {[%clk 00:07:55]} {[%emt 00:06:59]} 1-0

[Event "Klubbmästerskap 2025 Tisdag"]
[Site "Linköping, Sweden"]
[Date "2025.03.04"]
[Round "6.7"]
[White "Andersson, Fredrik 1969"]
[Black "Modéer, Björn"]
[Result "1-0"]
[TimeControl "90 min + 30 sec/move"]
[WhiteElo "1746"]
[BlackElo "1700"]

1. d4 {[%clk 01:30:57]} {[%emt 00:00:02]} Nf6 {[%clk 01:30:41]} {[%emt
00:00:19]} 2. Nc3 {[%clk 01:31:22]} {[%emt 00:00:05]} d5 {[%clk 01:31:00]}
{[%emt 00:00:11]} 3. Bf4 {[%clk 01:31:48]} {[%emt 00:00:04]} c5 {[%clk
01:31:11]} {[%emt 00:00:20]} 4. e4 {[%clk 01:32:10]} {[%emt 00:00:07]} dxe4
{[%clk 01:30:15]} {[%emt 00:01:26]} 5. dxc5 {[%clk 01:32:26]} {[%emt 00:06:52]}
Qa5 {[%clk 01:27:17]} {[%emt 00:00:01]} 6. Qd2 {[%clk 01:23:35]} {[%emt
00:06:10]} a6 {[%clk 01:18:38]} {[%emt 00:09:10]} 7. Nxe4 {[%clk 01:21:39]}
{[%emt 00:02:26]} Qxd2+ {[%clk 01:16:59]} {[%emt 00:02:08]} 8. Nxd2 {[%clk
01:21:44]} {[%emt 00:00:26]} Nc6 {[%clk 01:16:15]} {[%emt 00:01:14]} 9. c3
{[%clk 01:19:30]} {[%emt 00:02:44]} e5 {[%clk 01:12:04]} {[%emt 00:04:41]} 10.
Be3 {[%clk 01:14:00]} {[%emt 00:06:01]} Nd5 {[%clk 01:09:51]} {[%emt 00:02:42]}
11. Ne4 {[%clk 01:06:00]} {[%emt 00:08:30]} Nxe3 {[%clk 01:02:20]} {[%emt
00:08:01]} 12. fxe3 {[%clk 01:05:54]} {[%emt 00:00:38]} Be6 {[%clk 01:01:16]}
{[%emt 00:01:33]} 13. b4 {[%clk 00:54:39]} {[%emt 00:11:46]} Rd8 {[%clk
00:57:11]} {[%emt 00:04:35]} 14. Nf3 {[%clk 00:53:04]} {[%emt 00:02:05]} f6
{[%clk 00:50:47]} {[%emt 00:06:53]} 15. Be2 {[%clk 00:51:53]} {[%emt 00:01:41]}
Be7 {[%clk 00:47:30]} {[%emt 00:03:48]} 16. O-O {[%clk 00:46:17]} {[%emt
00:06:06]} O-O {[%clk 00:46:20]} {[%emt 00:01:40]} 17. a4 {[%clk 00:41:43]}
{[%emt 00:05:05]} Bf5 {[%clk 00:38:46]} {[%emt 00:08:03]} 18. Bc4+ {[%clk
00:37:19]} {[%emt 00:04:55]} Kh8 {[%clk 00:38:22]} {[%emt 00:00:54]} 19. Nfd2
{[%clk 00:36:39]} {[%emt 00:01:09]} Bc8 {[%clk 00:34:13]} {[%emt 00:04:39]} 20.
b5 {[%clk 00:35:25]} {[%emt 00:01:45]} Nb8 {[%clk 00:32:41]} {[%emt 00:02:01]}
21. Nb3 {[%clk 00:34:07]} {[%emt 00:01:48]} f5 {[%clk 00:29:48]} {[%emt
00:03:23]} 22. Ng3 {[%clk 00:30:13]} {[%emt 00:04:24]} g6 {[%clk 00:28:31]}
{[%emt 00:01:47]} 23. Rfd1 {[%clk 00:26:25]} {[%emt 00:04:18]} Kg7 {[%clk
00:26:19]} {[%emt 00:02:42]} 24. Rd5 {[%clk 00:23:02]} {[%emt 00:03:53]} Kf6
{[%clk 00:21:22]} {[%emt 00:05:27]} 25. Rf1 {[%clk 00:20:29]} {[%emt 00:03:04]}
Kg7 {[%clk 00:21:09]} {[%emt 00:00:43]} 26. Rfd1 {[%clk 00:16:24]} {[%emt
00:04:35]} Rxd5 {[%clk 00:17:00]} {[%emt 00:04:39]} 27. Bxd5 {[%clk 00:16:40]}
{[%emt 00:00:14]} Rd8 {[%clk 00:12:48]} {[%emt 00:04:42]} 28. c4 {[%clk
00:16:45]} {[%emt 00:00:25]} Nc6 {[%clk 00:08:09]} {[%emt 00:05:09]} 29. Rd2
{[%clk 00:12:31]} {[%emt 00:04:45]} Nb4 {[%clk 00:07:56]} {[%emt 00:00:42]} 30.
Ne2 {[%clk 00:10:15]} {[%emt 00:02:46]} Kf6 {[%clk 00:07:08]} {[%emt 00:01:18]}
31. c6 {[%clk 00:08:59]} {[%emt 00:01:46]} bxc6 {[%clk 00:06:30]} {[%emt
00:01:07]} 32. bxc6 {[%clk 00:09:12]} {[%emt 00:00:17]} Bd6 {[%clk 00:05:50]}
{[%emt 00:01:10]} 33. Nc3 {[%clk 00:08:46]} {[%emt 00:00:56]} Bc7 {[%clk
00:05:39]} {[%emt 00:00:41]} 34. Kf2 {[%clk 00:06:11]} {[%emt 00:03:05]} Bb6
{[%clk 00:02:36]} {[%emt 00:03:34]} 35. Ke2 {[%clk 00:06:05]} {[%emt 00:00:36]}
Bc7 {[%clk 00:02:21]} {[%emt 00:00:44]} 36. Nc5 {[%clk 00:05:21]} {[%emt
00:01:14]} Rd6 {[%clk 00:00:35]} {[%emt 00:02:16]} 37. Nb7 {[%clk 00:04:48]}
{[%emt 00:01:03]} Bxb7 {[%clk 00:00:34]} {[%emt 00:00:31]} 38. cxb7 {[%clk
00:05:16]} {[%emt 00:00:02]} Nxd5 {[%clk 00:00:38]} {[%emt 00:00:26]} 39. Nxd5+
{[%clk 00:05:34]} {[%emt 00:00:12]} Rxd5 {[%clk 00:00:50]} {[%emt 00:00:18]} 40.
cxd5 {[%clk 00:06:01]} {[%emt 00:00:03]} Ke7 {[%clk 00:00:58]} {[%emt
00:00:22]} 41. d6+ {[%clk 00:06:24]} {[%emt 00:00:07]} 1-0